fUSD/lending_fUSD_20240204
["ID","MTS","AMOUNT","RATE_DAILY","PERIOD"]
[313243248,1707004984025,4535.20566864,0.0001999,2]
[313243249,1707004992619,157.58,0.00021702,2]
[313243250,1707005000021,2009.33177658,0.0001999,2]
[313243251,1707005001314,-1207.65331483,0.00022693,2]
[313243252,1707005001335,-216.25442345,0.00022694,2]
[313243253,1707005001358,-289.72063905,0.00022705,2]
[313243254,1707005001378,-150.0,0.00022715,2]
[313243255,1707005001399,-3136.37162267,0.00022716,2]
[313243256,1707005001805,-5000.0,0.00022716,2]
[313243257,1707005003217,-537.4350766,0.00022622,2]
[313243258,1707005003236,-4462.5649234,0.00022716,2]
[313243259,1707005005401,-5000.0,0.00022716,2]
[313243260,1707005006722,-5000.0,0.00022716,2]
[313243261,1707005008035,-99.95357813,0.00022716,2]
[313243262,1707005008059,-282.21611749,0.00022717,2]
[313243263,1707005008079,-943.24199569,0.00022717,2]
[313243264,1707005008100,-3674.58830869,0.00022717,2]
[313243265,1707005009921,-3652.66892754,0.00022717,2]
[313243266,1707005009941,-155.1076646,0.00022717,2]
[313243267,1707005009962,-203.71035368,0.00022717,2]
[313243268,1707005009982,-944.34692555,0.00022717,2]
[313243269,1707005010002,-44.16612863,0.00022717,2]
[313243270,1707005011077,-539.75309184,0.00022717,2]
[313243271,1707005011097,-533.88869138,0.00022717,2]
[313243272,1707005011121,-505.57440672,0.00022717,2]
[313243273,1707005011141,-264.24903257,0.00022717,2]
[313243274,1707005011162,-3156.53477749,0.00022717,2]
[313243275,1707005012290,-1494.1190905,0.00022717,2]
[313243276,1707005012310,-155.0,0.00022717,2]
[313243277,1707005012331,-155.0,0.00022717,2]
[313243278,1707005012353,-1817.65805484,0.00022717,2]
[313243279,1707005012372,-489.80614747,0.00022717,2]
[313243280,1707005012393,-509.85982251,0.00022717,2]
[313243281,1707005012414,-378.55688468,0.00022717,2]
[313243282,1707005013422,-309.71012211,0.00022716,2]
[313243283,1707005013443,-96.26572002,0.00022717,2]
[313243284,1707005013463,-266.3113819,0.00022717,2]
[313243285,1707005013484,-4327.71277597,0.00022717,2]
[313243286,1707005015087,-2131.27950185,0.00022717,2]
[313243287,1707005015111,-2326.91370069,0.00022717,2]
[313243288,1707005015131,-296.47071973,0.00022717,2]
[313243289,1707005015152,-245.33607773,0.00022717,2]
[313243290,1707005016513,-3465.7876829,0.00022717,2]
[313243291,1707005016533,-1534.2123171,0.00022717,2]
[313243292,1707005077905,-1405.95380312,0.00022692,2]
[313243293,1707005077929,-761.41703721,0.00022692,2]
[313243294,1707005077951,-161.20618035,0.00022693,2]
[313243295,1707005077973,-1140.44018273,0.00022693,2]
[313243296,1707005077993,-215.30757313,0.00022694,2]
[313243297,1707005078014,-408.58104119,0.00022714,2]
[313243298,1707005078042,-505.19913211,0.00022715,2]
[313243299,1707005078063,-401.89505016,0.00022716,2]
[313243300,1707005078486,-5000.0,0.00022716,2]
[313243301,1707005079084,-5000.0,0.00022716,2]
[313243302,1707005080401,-5000.0,0.00022716,2]
[313243303,1707005081191,-5000.0,0.00022716,2]
[313243304,1707005081934,-5000.0,0.00022716,2]
[313243305,1707005084589,-943.61263493,0.00022691,2]
[313243306,1707005084612,-4056.38736507,0.00022716,2]
[313243307,1707005084916,-4011.25318961,0.00022716,2]
[313243308,1707005084939,-988.74681039,0.00022717,2]
[313243309,1707005085269,-516.44512725,0.00022717,2]
[313243310,1707005085291,-943.94435395,0.00022717,2]
[313243311,1707005085311,-282.21611749,0.00022717,2]
[313243312,1707005085334,-257.25729278,0.00022717,2]
[313243313,1707005085356,-296.35789135,0.00022717,2]
[313243314,1707005085380,-267.98234213,0.00022717,2]
[313243315,1707005085401,-1734.86677844,0.00022717,2]
[313243316,1707005085423,-700.93009661,0.00022718,2]
[313243317,1707005085612,-129.03433492,0.00022718,2]
[313243318,1707005085633,-534.48813205,0.0002272,2]
[313243319,1707005085654,-1314.06636369,0.0002272,2]
[313243320,1707005085674,-155.50939036,0.0002272,2]
[313243321,1707005085696,-1761.5866497,0.0002272,2]
[313243322,1707005085717,-1105.31512928,0.00022721,2]
[313243323,1707005085966,-5000.0,0.00022721,2]
[313243324,1707005088764,-5000.0,0.00022721,2]
[313243325,1707005089624,-5000.0,0.00022721,2]
[313243326,1707005095536,-151.05987926,0.00022594,2]
[313243327,1707005095556,-776.74321929,0.00022719,2]
[313243328,1707005095577,-161.20618035,0.0002272,2]
[313243329,1707005095598,-1404.80956026,0.0002272,2]
[313243330,1707005095618,-1140.44018273,0.0002272,2]
[313243331,1707005095638,-1365.74097811,0.00022721,2]
[313243332,1707005105747,-282.21611749,0.00022719,2]
[313243333,1707005105778,-389.91262165,0.0002272,2]
[313243334,1707005105808,-786.74954194,0.0002272,2]
[313243335,1707005105833,-497.30447917,0.0002272,2]
[313243336,1707005105861,-3043.81723975,0.0002272,2]
[313243337,1707005106114,-3967.07397086,0.0002272,2]
[313243338,1707005106141,-1032.92602914,0.00022721,2]
[313243339,1707005106510,-5000.0,0.00022721,2]
[313243340,1707005106822,-5000.0,0.00022721,2]
[313243341,1707005107170,-5000.0,0.00022721,2]
[313243342,1707005107613,-5000.0,0.00022721,2]
[313243343,1707005108837,-589.76499231,0.00022719,2]
[313243344,1707005108862,-4410.23500769,0.00022721,2]
[313243345,1707005109169,-5000.0,0.00022721,2]
[313243346,1707005109559,-5000.0,0.00022721,2]
[313243347,1707005109910,-5000.0,0.00022721,2]
[313243348,1707005110243,-5000.0,0.00022721,2]
[313243349,1707005110749,-5000.0,0.00022721,2]
[313243350,1707005133926,-5000.0,0.00022621,2]
[313243351,1707005134723,-5000.0,0.00022621,2]
[313243352,1707005138326,-5000.0,0.00022621,2]
[313243353,1707005139709,-5000.0,0.00022621,2]
[313243354,1707005140586,280.13227264,0.00022492,2]
[313243355,1707005156807,-392.85156286,0.0002262,2]
[313243356,1707005156829,-2056.14843714,0.0002262,2]
[313243357,1707005177333,-1000.0,0.00022619,2]
[313243370,1707005432070,-501.42306486,0.00022519,2]
[313243371,1707005432082,-150.0,0.0002252,2]
[313243372,1707005432092,-2607.74321115,0.00022521,2]
[313243373,1707005432101,-529.89771554,0.00022521,2]
[313243374,1707005432110,-9.4871182,0.00022521,2]
[313243375,1707005432121,-11527.9979566,0.00022521,2]
[313243376,1707005432134,-268.4268511,0.00022521,2]
[313243377,1707005432146,-3843.2819,0.00022521,2]
[313243378,1707005432161,-4264.93638872,0.00022521,2]
[313243379,1707005432250,-1416.6029188,0.00022521,2]
[313243424,1707005438043,-2028.35207815,0.00022521,2]
[313243425,1707005438785,-1541.09121438,0.00022521,2]
[313243426,1707005438843,-1506.61948755,0.00022521,2]
[313243427,1707005438855,-1349.8966865,0.00022521,2]
[313243428,1707005438865,-2500.0,0.00022521,2]
[313243429,1707005438874,-3669.0957,0.00022521,2]
[313243430,1707005438885,-1294.2619,0.00022619,2]
[313243431,1707005438897,-10577.85156286,0.0002262,2]
[313243432,1707005438907,-263.96909699,0.0002262,2]
[313243433,1707005438916,-155.20533588,0.0002262,2]
[313243434,1707005438926,-500.0,0.0002262,2]
[313243435,1707005438935,-500.0,0.0002262,2]
[313243436,1707005438944,-483.79097532,0.0002262,2]
[313243437,1707005438953,-44442.3852303,0.0002262,2]
[313243441,1707005439733,-726.70221464,0.0002262,2]
[313243442,1707005439746,-741.27723955,0.0002262,2]
[313243443,1707005439761,-420.8888349,0.0002262,2]
[313243444,1707005439781,-1251.38715086,0.0002262,2]
[313243445,1707005439798,-8335.44732819,0.0002262,2]
[313243479,1707005443502,-108652.84892782,0.0002262,2]
[313243480,1707005443513,-2297.65756068,0.0002262,2]
[313243481,1707005443593,-2273.97343902,0.0002262,2]
[313243482,1707005443908,-504487.12146866,0.0002262,2]
[313243483,1707005443917,-393433.83089844,0.00022621,3]
[313243484,1707005443926,-157919.46840209,0.00022621,2]
[313243485,1707005444987,-834.76265839,0.00022621,2]
[313243486,1707005445000,-452.63,0.00022621,2]
[313243487,1707005445072,-2810.68262043,0.00022621,2]
[313243488,1707005445089,-5989.05504298,0.00022621,2]
[313243489,1707005445105,-2273.97343902,0.00022621,2]
[313243490,1707005445117,-1237.66137803,0.00022621,2]
[313243491,1707005445455,-4.62897603,0.00022621,2]
[313243505,1707005446116,-3577.71237087,0.00022621,2]
[313243506,1707005446175,-310.41516181,0.00022621,2]
[313243507,1707005446188,-2503.16281808,0.00022621,2]
[313243508,1707005446199,-2444.67185291,0.00022621,2]
[313243509,1707005446236,-457.16083985,0.00022621,2]
[313243510,1707005446247,-2119.69814074,0.00022621,2]
[313243511,1707005446258,-349.52660475,0.00022621,2]
[313243512,1707005446290,-255951.37679402,0.00022621,2]
[313243513,1707005446299,-2428.9975,0.00022621,2]
[313243514,1707005446308,-461.579,0.00022621,2]
[313243515,1707005446318,-499.99,0.00022621,2]
[313243516,1707005446327,-1120.36307116,0.00022622,2]
[313243517,1707005446338,-329.30586988,0.00022622,2]
[313243518,1707005446347,-3023.63167922,0.00022622,2]
[313243519,1707005446356,-1102.32358592,0.00022622,2]
[313243520,1707005446366,-208.76831939,0.00022622,2]
[313243521,1707005446375,-156.12,0.00022685,2]
[313243522,1707005446384,-4532.16116973,0.00022706,2]
[313243523,1707005446393,-338.64622481,0.00022719,2]
[313243524,1707005446403,-225.21653009,0.00022719,2]
[313243525,1707005446412,-632.82052647,0.00022719,2]
[313243526,1707005446422,-560.68239729,0.00022719,2]
[313243527,1707005446432,-155.21131576,0.00022719,2]
[313243528,1707005446441,-2314.59602894,0.00022719,2]
[313243529,1707005446451,-158.02823022,0.00022719,2]
[313243530,1707005446462,-217.75336827,0.0002272,2]
[313243532,1707005446471,-4311.0556863,0.0002272,2]
[313243534,1707005446480,-6856.95712495,0.0002272,2]
[313243536,1707005446490,-179828.40973589,0.00022722,2]
[313243538,1707005446502,-4378.51184603,0.00022722,2]
[313243540,1707005446513,-547.28982238,0.00022722,2]
[313243541,1707005446525,-369.01632596,0.00022722,2]
[313243543,1707005446536,-4876.77226974,0.00022722,2]
[313243545,1707005446546,-238.05871061,0.00022722,2]
[313243547,1707005446555,-7100.88,0.00022722,2]
[313243549,1707005446565,-168.07,0.00022765,2]
[313243550,1707005446574,-2993.37585803,0.000229,2]
[313243551,1707005446585,-153.04633665,0.000229,2]
[313243552,1707005446594,-170.39257235,0.000229,2]
[313243553,1707005446604,-156.12,0.00022922,2]
[313243554,1707005446614,-228.5738484,0.00022999,2]
[313243555,1707005446623,-6321.29070551,0.00023,2]
[313243556,1707005446635,-379.80612017,0.00023,2]
[313243557,1707005510845,158.71,0.00020846,2]
[313243558,1707005549750,308.43,0.00021924,2]
[313243559,1707005589261,153.62,0.00021918,2]
[313243560,1707005589454,153.62,0.00022137,2]
[313243561,1707005589640,153.62,0.00022356,2]
[313243562,1707005648520,219.5372466,0.0002242,2]
[313243563,1707005655678,75573.0,0.00022293,2]
[313243564,1707005658715,2015.75445282,0.00022418,2]
[313243565,1707005660126,942.00590306,0.00022418,2]
[313243566,1707005688982,529.8977155,0.00022417,2]
[313243567,1707005690425,10898.99967612,0.00022417,2]
[313243568,1707005692855,260.76,0.00021811,2]
[313243569,1707005693699,419.97449622,0.00022418,2]
[313243570,1707005735182,216.95,0.00021803,2]
[313243571,1707005762054,734.88239062,0.00022415,2]
[313243572,1707005793867,1343.83630188,0.00022415,2]
[313243573,1707005795589,628.00393538,0.00022415,2]
[313243574,1707005812910,156.05,0.00021962,2]
[313243575,1707005813293,156.05,0.00022248,2]
[313243576,1707005829230,529.8977155,0.00022413,2]
[313243577,1707005858319,2565.67238747,0.0002241,2]
[313243578,1707005875587,9734.7174,0.00022414,2]
[313243579,1707005883967,279.98299748,0.00022411,2]
[313243580,1707005895930,5000.0,0.00022416,2]
[313243581,1707005921559,150.77,0.00019864,2]
[313243582,1707005921597,150.77,0.00022128,2]
[313243583,1707005929097,895.89086792,0.00022409,2]
[313243584,1707005930897,418.66929024,0.00022409,2]
[313243585,1707005942364,489.92159374,0.00022409,2]
[313243586,1707005959572,529.8977155,0.00022408,2]
[313243587,1707005963542,243.28708493,0.00022407,2]
[313243588,1707006011569,277.54936163,0.00022495,2]
[313243589,1707006011636,277.54936163,0.00022499,2]
[313243590,1707006039927,5000.0,0.00022411,2]
[313243591,1707006048766,223.58216126,0.00022277,4]
[313243592,1707006064330,597.26057862,0.00022408,2]
[313243593,1707006066285,279.11286016,0.00022408,2]
[313243594,1707006074447,186.65533166,0.00022408,2]
[313243595,1707006079993,529.8977155,0.00022404,2]
[313243596,1707006122702,326.61439582,0.00022403,2]
[313243597,1707006138751,2244.96333908,0.00022402,2]
[313243598,1707006157569,550.0,0.00022,3]
[313243599,1707006169018,217.3,0.00021804,2]
[313243600,1707006184379,5000.0,0.00022403,2]
[313243601,1707006190305,529.8977155,0.00022419,2]
[313243602,1707006199524,398.17371908,0.0002242,2]
[313243603,1707006201662,186.07524012,0.0002242,2]
[313243604,1707006242100,150.0,0.000225,2]
[313243605,1707006264594,186.65533165,0.00022401,2]
[313243606,1707006273369,196716.91544922,0.000225,3]
[313243607,1707006303062,217.74293056,0.0002242,2]
[313243608,1707006322652,5000.0,0.00022402,2]
[313243609,1707006334770,265.44914604,0.0002242,2]
[313243610,1707006358206,531944.52716777,0.00022402,2]
[313243611,1707006358236,82206.72503223,0.00022402,2]
[313243612,1707006384561,1000.0,0.00021825,2]
[313243613,1707006415577,156.05,0.00022021,2]
[313243614,1707006419213,1964.34292166,0.00022419,2]
[313243615,1707006444861,186.65533165,0.0002242,2]
[313243616,1707006445711,5000.0,0.00022402,2]
[313243617,1707006458163,3624.2435,0.00022419,2]
[313243618,1707006469929,176.96609736,0.0002242,2]
[313243619,1707006473595,150.0,0.00022398,2]
[313243620,1707006495588,160.29131633,0.00022403,2]
[313243621,1707006500558,160.29131631,0.00022404,2]
[313243622,1707006505581,160.29131631,0.00022405,2]
[313243623,1707006510567,160.29131631,0.00022406,2]
[313243624,1707006515583,160.29131631,0.00022407,2]
[313243625,1707006520837,160.29131631,0.00022407,2]
[313243626,1707006525555,160.29131631,0.00022408,2]
[313243627,1707006530565,160.29131631,0.00022409,2]
[313243628,1707006533355,150.77,0.00020079,2]
[313243629,1707006535560,160.29131631,0.0002241,2]
[313243630,1707006540564,160.29131631,0.00022411,2]
[313243631,1707006545563,160.29131631,0.00022412,2]
[313243632,1707006550593,160.29131631,0.00022413,2]
[313243633,1707006550707,-1000.0,0.00022501,2]
[313243634,1707006555569,160.29131631,0.00022414,2]
[313243635,1707006560562,160.29131631,0.00022415,2]
[313243636,1707006565569,160.29131631,0.00022416,2]
[313243637,1707006570583,160.29131631,0.00022416,2]
[313243638,1707006575564,160.29131631,0.00022417,2]
[313243639,1707006580593,160.29131631,0.00022418,2]
[313243640,1707006585569,160.29131631,0.00022419,2]
[313243641,1707006590059,5000.0,0.00022419,2]
[313243642,1707006590624,160.29131631,0.0002242,2]
[313243643,1707006604532,181.08,0.00021958,2]
[313243647,1707006632200,-14067.917,0.00022501,2]
[313243648,1707006632210,-322.81727252,0.00022503,2]
[313243649,1707006632219,-3308.75824519,0.00022509,2]
[313243650,1707006632230,-277.54936164,0.00022509,2]
[313243651,1707006632239,-459.14279187,0.00022513,2]
[313243652,1707006632248,-384.4123,0.00022518,2]
[313243653,1707006632257,-98358.45772461,0.00022519,3]
[313243654,1707006632267,-108071.86076743,0.00022519,2]
[313243655,1707006632279,-13828.22707705,0.00022519,2]
[313243656,1707006632291,-3820.07583061,0.00022519,2]
[313243657,1707006632310,-358.97557567,0.00022519,2]
[313243658,1707006632322,-2381.71050512,0.00022519,2]
[313243659,1707006632334,-15437.5079513,0.00022519,2]
[313243660,1707006632348,-318306.83263151,0.00022519,2]
[313243661,1707006632361,-3180.47485478,0.00022519,2]
[313243662,1707006632388,-287.75294492,0.00022519,2]
[313243663,1707006632407,-340.40155357,0.00022519,2]
[313243664,1707006632418,-5451.24675663,0.00022519,2]
[313243665,1707006633530,-275.77891219,0.00022519,2]
[313243666,1707006633543,-849.73624576,0.00022519,2]
[313243667,1707006633586,-10480.14992872,0.00022519,2]
[313243668,1707006633599,-1271.24,0.00022519,2]
[313243677,1707006638297,-25904.81922801,0.00022519,2]
[313243678,1707006638355,-1790.02609436,0.00022519,2]
[313243679,1707006638366,-561.2699,0.00022519,2]
[313243680,1707006638378,-333.4011,0.00022519,2]
[313243681,1707006638389,-17555.54002448,0.00022519,2]
[313243682,1707006638416,-825.57805478,0.00022519,2]
[313243683,1707006638428,-529061.8602588,0.00022519,2]
[313243684,1707006638438,-673629.68939462,0.00022519,2]
[313243685,1707006638448,-500.0,0.0002252,2]
[313243686,1707006638458,-634.4781,0.0002252,2]
[313243687,1707006638467,-39361.9193,0.0002252,2]
[313243688,1707006638477,-100000.0,0.0002252,2]
[313243689,1707006638487,-1000.0,0.0002252,2]
[313243690,1707006638497,-245000.0,0.0002252,2]
[313243691,1707006638506,-176.87,0.0002252,2]
[313243692,1707006638515,-7510.45,0.0002252,2]
[313243693,1707006638524,-845.12,0.00022575,2]
[313243694,1707006638533,-153.62,0.00022575,2]
[313243695,1707006638542,-156.05,0.00022594,2]
[313243696,1707006638551,-150.77,0.00022609,2]
[313243697,1707006638561,-487.84228146,0.00022617,2]
[313243698,1707006638569,-166.69253359,0.00022619,2]
[313243699,1707006638578,-509.46071659,0.00022619,2]
[313243700,1707006638588,-2664.85836799,0.00022619,2]
[313243701,1707006638597,-415.50518176,0.00022619,2]
[313243702,1707006638606,-707.90617777,0.0002262,2]
[313243703,1707006638616,-606.14076086,0.0002262,2]
[313243704,1707006638625,-153.62,0.00022795,2]
[313243705,1707006638634,-1652.57999212,0.000228,2]
[313243707,1707006638644,-153.04633665,0.000229,2]
[313243709,1707006638653,-400.0,0.00022959,2]
[313243711,1707006638662,-215.12757545,0.00022975,2]
[313243713,1707006638671,-1772.22004087,0.00022989,2]
[313243715,1707006638680,-199.03575703,0.00022997,2]
[313243717,1707006638690,-426.29807876,0.00022997,2]
[313243718,1707006638699,-353.17177551,0.00022997,2]
[313243719,1707006638708,-432.75226238,0.00022997,2]
[313243720,1707006638717,-163.58982488,0.00022997,2]
[313243721,1707006638726,-186.69496292,0.00022997,2]
[313243722,1707006638735,-228.3602233,0.00022997,2]
[313243723,1707006638745,-929.94153038,0.00022998,2]
[313243724,1707006638754,-503.04226375,0.00022998,2]
[313243725,1707006638764,-310.6842223,0.00022998,2]
[313243726,1707006638773,-1192.46395615,0.00022998,2]
[313243727,1707006638783,-330.9142419,0.00022998,2]
[313243728,1707006638792,-334.1340822,0.00022998,2]
[313243729,1707006638801,-1244.1137027,0.00022998,2]
[313243730,1707006638811,-292.59208088,0.00022998,2]
[313243731,1707006638820,-624.06311545,0.00022998,2]
[313243732,1707006638830,-155.67386555,0.00022998,2]
[313243733,1707006638839,-155.77043978,0.00022998,2]
[313243734,1707006638848,-410.45065952,0.00022998,2]
[313243735,1707006638857,-241.28019223,0.00022998,2]
[313243736,1707006638867,-201.33713673,0.00022998,2]
[313243737,1707006638876,-155.47934399,0.00022998,2]
[313243738,1707006638886,-392.87874065,0.00022998,2]
[313243739,1707006638895,-2151.72993286,0.00022998,2]
[313243740,1707006638904,-275.98706944,0.00022998,2]
[313243741,1707006638913,-365.220922,0.00022998,2]
[313243742,1707006638922,-3828.48490855,0.00022998,2]
[313243743,1707006638931,-259.83188113,0.00022998,2]
[313243744,1707006638941,-207.49720552,0.00022998,2]
[313243745,1707006638950,-202.76099161,0.00022998,2]
[313243746,1707006639107,-156.62849969,0.00022998,2]
[313243747,1707006639117,-831.61927221,0.00022998,2]
[313243748,1707006639126,-2137.33040402,0.00022998,2]
[313243749,1707006639135,-204.8999602,0.00022998,2]
[313243750,1707006639145,-156.85528426,0.00022998,2]
[313243751,1707006639155,-155.35453074,0.00022998,2]
[313243752,1707006639165,-157.68639668,0.00022998,2]
[313243753,1707006639174,-228.83453251,0.00022998,2]
[313243754,1707006639183,-155.78698594,0.00022998,2]
[313243755,1707006639193,-449.66200753,0.00022998,2]
[313243756,1707006639203,-200.0,0.00022998,2]
[313243757,1707006639212,-179.0,0.00022998,2]
[313243758,1707006639222,-2104.8513,0.00022999,2]
[313243759,1707006639232,-443.27087566,0.00022999,10]
[313243760,1707006639242,-235046.75204469,0.00023,2]
[313243761,1707006639251,-290.51872306,0.00023,2]
[313243762,1707006639261,-153.62,0.00023014,2]
[313243763,1707006639270,-156.05,0.00023168,2]
[313243764,1707006639279,-153.62,0.00023233,2]
[313243765,1707006639288,-300.0,0.00023357,2]
[313243766,1707006639298,-153.62,0.00023452,2]
[313243767,1707006639310,-181.08,0.00023602,2]
[313243768,1707006639320,-153.62,0.00023671,2]
[313243769,1707006639330,-153.62,0.0002389,2]
[313243770,1707006639339,-10898.99967612,0.00023915,2]
[313243771,1707006639348,-207.53,0.0002394,2]
[313243772,1707006639357,-75000.0,0.00023945,15]
[313243773,1707006639367,-387.35895658,0.00024,2]
[313243774,1707006639377,-600.0,0.00024,3]
[313243775,1707006639386,-153.62,0.0002411,2]
[313243776,1707006639396,-1250.0,0.0002423,2]
[313243777,1707006639408,-215.0,0.0002423,2]
[313243778,1707006639417,-1034.0,0.0002423,2]
[313243779,1707006639426,-7310.367,0.00024335,2]
[313243780,1707006639438,-1711.407,0.00024335,2]
[313243781,1707006639447,-3589.593,0.00024335,2]
[313243782,1707006639456,-2282.0,0.00024335,2]
[313243783,1707006639466,-4489.013,0.00024335,2]
[313243784,1707006639475,-19783.0,0.00024335,2]
[313243785,1707006639484,-42406.0,0.00024335,2]
[313243786,1707006639493,-1232.0,0.00024335,2]
[313243787,1707006639502,-10733.33885896,0.00024384,2]
[313243788,1707006639519,-1048.6173871,0.00024384,2]
[313243791,1707006640778,-1785.03377964,0.00024384,2]
[313243808,1707006643317,-401.89143295,0.00024383,2]
[313243809,1707006643326,-155.65924392,0.00024383,2]
[313243810,1707006643336,-6945.9999743,0.00024384,2]
[313243811,1707006643345,-1000.0,0.00024553,2]
[313243812,1707006643354,-2682.0,0.00024658,2]
[313243813,1707006643363,-0.65841849,0.00024658,2]
[313243814,1707006643374,-1416.93860622,0.00024658,2]
[313243815,1707006643425,-1264.40297529,0.00024658,2]
[313243816,1707006643434,-868.12849005,0.00024658,2]
[313243817,1707006643484,-353.76039003,0.00024383,2]
[313243818,1707006643493,-83.32706167,0.00024658,2]
[313243819,1707006646271,-2305.83157254,0.00024383,2]
[313243820,1707006646280,-3403.54444828,0.00024658,2]
[313243821,1707006646289,-2500.0,0.00024658,3]
[313243822,1707006646298,-250.0,0.00024658,2]
[313243823,1707006646309,-300.0,0.00024727,2]
[313243824,1707006646319,-257.8841217,0.00024985,3]
[313243825,1707006646327,-237.59837962,0.00024985,3]
[313243826,1707006646336,-464.27605033,0.00024985,3]
[313243827,1707006646345,-582.83341486,0.00024985,3]
[313243828,1707006646354,-249.89953261,0.00024985,3]
[313243829,1707006646363,-348.3317895,0.00024985,3]
[313243830,1707006646372,-269.45772692,0.00024985,3]
[313243831,1707006646381,-317.1010525,0.00024985,3]
[313243832,1707006646390,-269.68881909,0.00024985,3]
[313243833,1707006646399,-269.68881908,0.00024985,3]
[313243834,1707006646409,-800.0,0.00024986,2]
[313243835,1707006646418,-3050.34368042,0.00025,2]
[313243836,1707006646427,-159.2692348,0.00025,2]
[313243837,1707006646436,-1798.02731092,0.00025,2]
[313243838,1707006646445,-167.96342031,0.00025,2]
[313243839,1707006646454,-584.55688261,0.00025,2]
[313243840,1707006646462,-202.73608472,0.00025,2]
[313243841,1707006646471,-1906.13148875,0.00025,2]
[313243842,1707006646482,-4000.0,0.00025,2]
[313243843,1707006646492,-150.77,0.00025139,2]
[313243844,1707006646502,-181.08,0.00025246,2]
[313243845,1707006646511,-10898.99967612,0.00025414,2]
[313243846,1707006646520,-3720.0,0.000257,2]
[313243847,1707006646529,-1086.86546104,0.00025799,2]
[313243848,1707006646538,-5653.85743183,0.00025799,2]
[313243849,1707006646547,-1368.01722882,0.00025799,2]
[313243850,1707006646558,-356.8393713,0.00025799,2]
[313243851,1707006646567,-24192.0,0.000258,2]
[313243852,1707006646576,-2737.89925924,0.00025998,2]
[313243853,1707006646585,-158.98648489,0.00025998,2]
[313243854,1707006646594,-155.0,0.00025998,2]
[313243855,1707006646603,-166.39720002,0.00025999,2]
[313243856,1707006646613,-650.0,0.00026,3]
[313243858,1707006646622,-1560.2324774,0.00026,2]
[313243860,1707006646631,-1560.2324774,0.00026,2]
[313243861,1707006646640,-1560.2324774,0.00026,2]
[313243862,1707006646649,-1560.2324774,0.00026,2]
[313243863,1707006646658,-1560.2324774,0.00026,2]
[313243864,1707006646667,-1560.2324774,0.00026,2]
[313243866,1707006646676,-1560.2324774,0.00026,2]
[313243867,1707006646685,-1560.2324774,0.00026,2]
[313243869,1707006646694,-1560.2324774,0.00026,2]
[313243871,1707006646703,-1560.2324774,0.00026,2]
[313243873,1707006646712,-1560.2324774,0.00026,2]
[313243874,1707006646721,-1560.2324774,0.00026,2]
[313243876,1707006646730,-1560.2324774,0.00026,2]
[313243878,1707006646739,-1560.2324774,0.00026,2]
[313243880,1707006646748,-1560.2324774,0.00026,2]
[313243882,1707006646757,-1560.2324774,0.00026,2]
[313243883,1707006646767,-1560.2324774,0.00026,2]
[313243884,1707006646776,-1560.2324774,0.00026,2]
[313243885,1707006646785,-1560.2324774,0.00026,2]
[313243886,1707006646794,-1560.2324774,0.00026,2]
[313243887,1707006646803,-150.0,0.00026079,2]
[313243888,1707006646812,-200.0,0.00026082,2]
[313243889,1707006646821,-206.0,0.00026239,2]
[313243890,1707006646830,-150.0,0.000265,14]
[313243891,1707006646839,-20000.0,0.00026588,2]
[313243892,1707006646848,-19000.0,0.00026588,2]
[313243893,1707006646858,-1888.86828909,0.00026588,2]
[313243894,1707006646867,-153.04633665,0.00026749,2]
[313243895,1707006646876,-1000.0,0.000268,2]
[313243896,1707006646885,-181.08,0.0002689,2]
[313243897,1707006646894,-10898.99967612,0.00026912,2]
[313243898,1707006646903,-150.0,0.00027,15]
[313243899,1707006646913,-152.32680565,0.00027123,2]
[313243900,1707006646922,-1250.0,0.0002723,2]
[313243901,1707006646931,-215.0,0.0002723,2]
[313243902,1707006646939,-1031.918,0.0002723,2]
[313243903,1707006646949,-1000.0,0.00027281,2]
[313243904,1707006646957,-2127.914,0.00027335,2]
[313243905,1707006646966,-19783.0,0.00027335,2]
[313243906,1707006646975,-5322.263,0.00027335,2]